bitfinex/quotes_BTCUSD_20250127
["timestamp","ask_amount","ask_price","bid_price","bid_amount"]
[1737957864881,0.1649815,100480.0,100470.0,0.12830742]
[1737957865064,0.3142645,100480.0,100470.0,0.27760542]
[1737957865267,0.3142645,100480.0,100470.0,0.12830742]
[1737957865771,0.41161179,100480.0,100470.0,0.00020742]
[1737957866182,0.41161179,100480.0,100470.0,0.00050457]
[1737957866391,0.41161179,100480.0,100470.0,0.00250457]
[1737957866818,0.41161179,100480.0,100460.0,0.05029715]
[1737957866819,0.393998,100470.0,100460.0,0.05029715]
[1737957867023,0.50988529,100470.0,100460.0,0.05029715]
[1737957867382,0.312538,100470.0,100460.0,0.05029715]
[1737957867887,0.16324,100470.0,100460.0,0.19961015]
[1737957868098,0.16324,100470.0,100460.0,0.41615831]
[1737957868099,0.14024,100470.0,100460.0,0.41615831]
[1737957869283,0.16324,100470.0,100460.0,0.41615831]
[1737957870238,0.16424,100470.0,100460.0,0.41615831]
[1737957872962,0.04254,100470.0,100460.0,0.41615831]
[1737957873171,0.04254,100470.0,100460.0,0.42633749]
[1737957873371,0.04254,100470.0,100460.0,0.57633749]
[1737957874208,0.02935167,100470.0,100460.0,0.57633749]
[1737957875310,0.02935167,100470.0,100460.0,0.45713662]
[1737957877642,0.02949317,100470.0,100460.0,0.45713662]
[1737957878064,0.00649317,100470.0,100460.0,0.57633749]
[1737957878277,0.00649317,100470.0,100460.0,0.60737293]
[1737957878483,0.00649317,100470.0,100460.0,0.62520727]
[1737957879727,0.00649317,100470.0,100460.0,0.71453814]
[1737957880809,0.00649317,100470.0,100460.0,0.59533727]
[1737957881255,0.08549317,100470.0,100460.0,0.59533727]
[1737957881395,0.10849317,100470.0,100460.0,0.59533727]
[1737957881792,0.15429317,100470.0,100460.0,0.30677536]
[1737957882224,0.15429317,100470.0,100460.0,0.21744449]
[1737957883912,0.30359117,100470.0,100460.0,0.21744449]
[1737957885590,0.52013933,100470.0,100460.0,0.06813149]
[1737957886237,0.52013933,100470.0,100460.0,0.05029715]
[1737957886632,0.62013933,100470.0,100460.0,0.05029715]
[1737957886863,0.79913933,100470.0,100460.0,0.05029715]
[1737957887221,0.84323933,100470.0,100460.0,0.08967798]
[1737957887425,0.84023933,100470.0,100460.0,0.08967798]
[1737957887661,0.83923933,100470.0,100460.0,0.08967798]
[1737957887831,0.84223933,100470.0,100460.0,0.08967798]
[1737957888018,0.84023933,100470.0,100460.0,0.08967798]
[1737957888442,0.84223933,100470.0,100460.0,0.09067798]
[1737957888655,0.83923933,100470.0,100460.0,0.08967798]
[1737957889077,0.83923933,100470.0,100460.0,0.08997534]
[1737957889475,0.91658662,100470.0,100460.0,0.01187534]
[1737957889690,0.93658662,100470.0,100460.0,0.01187534]
[1737957889909,1.63447749,100470.0,100460.0,0.01287534]
[1737957890280,1.63447749,100470.0,100460.0,0.00129736]
[1737957890507,1.51527662,100470.0,100460.0,0.00129736]
[1737957891381,1.53227662,100470.0,100460.0,0.00129736]
[1737957891707,1.51227662,100470.0,100460.0,0.00129736]
[1737957891897,1.52427662,100470.0,100460.0,0.00029736]
[1737957892066,1.50427662,100470.0,100460.0,0.00029736]
[1737957892274,1.31992933,100470.0,100460.0,0.00029736]
[1737957892476,0.97038117,100470.0,100460.0,0.00029736]
[1737957893081,0.97038117,100470.0,100460.0,0.00129736]
[1737957893286,0.97138117,100470.0,100460.0,0.00129736]
[1737957893632,0.98338117,100470.0,100460.0,0.00029736]
[1737957894030,0.99438117,100470.0,100460.0,0.00129736]
[1737957894253,0.98638117,100470.0,100460.0,0.00029736]
[1737957894455,0.98838117,100470.0,100460.0,0.00029736]
[1737957894674,1.21692933,100470.0,100460.0,0.00029736]
[1737957894986,1.08772846,100470.0,100460.0,0.00029736]
[1737957895463,1.00038144,100470.0,100460.0,0.00029736]
[1737957896466,1.01892144,100470.0,100460.0,0.00029736]
[1737957896698,1.3454696,100470.0,100460.0,0.00029736]
[1737957896895,1.3354696,100470.0,100460.0,0.00029736]
[1737957897542,1.3454696,100470.0,100460.0,0.00029736]
[1737957897993,1.68967047,100470.0,100460.0,0.00029736]
[1737957898171,1.5504696,100470.0,100460.0,0.00029736]
[1737957898550,1.4654696,100470.0,100460.0,0.00029736]
[1737957898965,1.4554696,100470.0,100460.0,0.00029736]
[1737957899203,1.4654696,100470.0,100460.0,0.00029736]
[1737957899935,1.4454696,100470.0,100460.0,0.00029736]
[1737957900077,1.3354696,100470.0,100460.0,0.00029736]
[1737957900576,1.1856112,100470.0,100460.0,0.00029736]
[1737957901661,1.68215936,100470.0,100460.0,0.00029736]
[1737957901817,1.57215936,100470.0,100460.0,0.00029736]
[1737957902020,1.67715936,100470.0,100460.0,0.00029736]
[1737957903357,1.57715936,100470.0,100460.0,0.00029736]
[1737957903563,1.61707936,100470.0,100460.0,0.00029736]
[1737957903762,1.96606926,100470.0,100460.0,0.00029736]
[1737957904232,1.96106926,100470.0,100460.0,0.00029736]
[1737957904543,2.53456926,100470.0,100460.0,0.00129736]
[1737957904731,1.74385936,100470.0,100460.0,0.00129736]
[1737957905396,1.55815936,100470.0,100460.0,0.00129736]
[1737957905611,1.56115936,100470.0,100460.0,0.00129736]
[1737957905837,1.55315936,100470.0,100460.0,0.00029736]
[1737957906248,1.56115936,100470.0,100460.0,0.00129736]
[1737957907532,0.439628,100450.0,100440.0,0.00029715]
[1737957907802,1.17686616,100450.0,100440.0,0.00029715]
[1737957908063,1.06620529,100450.0,100440.0,0.00029715]
[1737957908309,0.795858,100450.0,100440.0,0.00029715]
[1737957908506,0.945858,100450.0,100440.0,0.00029715]
[1737957908706,1.18540616,100450.0,100440.0,0.00029715]
[1737957909363,1.19624088,100450.0,100440.0,0.00029715]
[1737957914716,1.07704001,100450.0,100440.0,0.00029715]
[1737957915356,1.19624088,100450.0,100440.0,0.00029715]
[1737957915927,1.30358817,100450.0,100440.0,0.00029715]
[1737957916125,1.40358817,100450.0,100440.0,0.00029715]
[1737957916326,1.62278904,100450.0,100440.0,0.00029715]
[1737957916910,0.332342,100440.0,100430.0,0.00029715]
[1737957917121,1.06512016,100440.0,100430.0,0.00029715]
[1737957918127,1.18432103,100440.0,100430.0,0.00029715]
[1737957918329,1.18532103,100440.0,100430.0,0.00029715]
[1737957918551,0.63777374,100420.0,100410.0,0.01779507]
[1737957918805,1.28435103,100420.0,100410.0,0.01779507]
[1737957918955,0.299387,100410.0,100400.0,0.10702168]
[1737957919168,0.91627787,100410.0,100400.0,0.10702168]
[1737957919780,1.03216516,100410.0,100400.0,0.08972128]
[1737957920400,1.23386603,100410.0,100400.0,0.08972128]
[1737957921390,1.33386603,100410.0,100400.0,0.08972128]
[1737957921734,1.41276603,100410.0,100400.0,0.08972128]
[1737957921937,1.45443522,100410.0,100400.0,0.08972128]
[1737957922283,1.45443522,100410.0,100400.0,0.00049467]
[1737957922406,1.55443522,100410.0,100400.0,0.00049467]
[1737957923029,1.55543522,100410.0,100400.0,0.00049467]
[1737957923197,1.64843522,100410.0,100400.0,0.00049467]
[1737957923621,1.64743522,100410.0,100400.0,0.00049467]
[1737957923820,1.64843522,100410.0,100400.0,0.00079203]
[1737957924024,1.64543522,100410.0,100400.0,0.00079203]
[1737957924430,1.65043522,100410.0,100400.0,0.00079203]
[1737957924654,1.67969408,100410.0,100400.0,0.00079203]
[1737957924835,1.68169408,100410.0,100400.0,0.00079203]
[1737957925725,1.66169408,100410.0,100400.0,0.00079203]
[1737957927201,1.63243522,100410.0,100400.0,0.00079203]
[1737957927418,1.65944437,100410.0,100400.0,0.00079203]
[1737957929512,1.55944437,100410.0,100400.0,0.00079203]
[1737957929912,1.57944437,100410.0,100400.0,0.00079203]
[1737957930268,1.55944437,100410.0,100400.0,0.00079203]
[1737957930477,1.46086603,100410.0,100400.0,0.00079203]
[1737957930830,1.33786603,100410.0,100400.0,0.00079203]
[1737957931244,1.32786603,100410.0,100400.0,0.00079203]
[1737957931676,1.46086603,100410.0,100400.0,0.00079203]
[1737957931891,1.35086603,100410.0,100400.0,0.00079203]
[1737957932099,1.35387477,100410.0,100400.0,0.00079203]
[1737957932524,1.36387477,100410.0,100400.0,0.00079203]
[1737957933123,0.96407303,100410.0,100400.0,0.00079203]
[1737957933378,0.98707303,100410.0,100400.0,0.00079203]
[1737957933504,0.86672574,100410.0,100400.0,0.00079203]
[1737957933905,0.60522374,100410.0,100400.0,0.2693949]
[1737957934108,0.59922374,100410.0,100400.0,0.2693949]
[1737957934317,0.56112374,100410.0,100400.0,0.44984219]
[1737957934514,0.56212374,100410.0,100400.0,0.44984219]
[1737957934731,0.56012374,100410.0,100400.0,0.49654219]
[1737957935142,0.56012374,100410.0,100400.0,0.51432207]
[1737957935888,0.55912374,100410.0,100400.0,0.63352294]
[1737957936321,0.56012374,100410.0,100400.0,0.63952294]
[1737957937468,0.56012374,100410.0,100400.0,0.64152294]
[1737957937873,0.56012374,100410.0,100400.0,0.63952294]
[1737957938284,0.56012374,100410.0,100400.0,0.64152294]
[1737957938705,0.52023874,100410.0,100400.0,0.64152294]
[1737957939589,0.52023874,100410.0,100400.0,0.65143318]
[1737957940603,0.23671256,100410.0,100400.0,0.91206318]
[1737957940811,0.0001416,100440.0,100430.0,0.299357]
[1737957941013,0.0001416,100440.0,100430.0,0.85950603]
[1737957941219,0.0001416,100440.0,100430.0,0.85917769]
[1737957941431,6e-07,100440.0,100430.0,1.15401869]
[1737957941672,6e-07,100440.0,100430.0,0.90217769]
[1737957942264,6e-07,100440.0,100430.0,0.91994235]
[1737957942677,6e-07,100440.0,100430.0,1.00889461]
[1737957943105,0.0010006,100440.0,100430.0,1.01789461]
[1737957943261,0.0010006,100440.0,100430.0,1.28591761]
[1737957943470,0.0010006,100440.0,100430.0,1.22397561]
[1737957943690,0.0010006,100440.0,100430.0,1.01789461]
[1737957943887,0.0010006,100440.0,100430.0,1.02289461]
[1737957944070,0.0010006,100440.0,100430.0,1.18612561]
[1737957944276,0.00093146,100440.0,100430.0,1.18612561]
[1737957944728,0.00093146,100440.0,100430.0,1.09717335]
[1737957944904,0.00093146,100440.0,100430.0,1.15044898]
[1737957946071,4.6e-07,100440.0,100430.0,1.16044898]
[1737957946227,4.6e-07,100440.0,100430.0,1.00199898]
[1737957946447,4.6e-07,100440.0,100430.0,0.99403122]
[1737957946808,0.00014216,100440.0,100430.0,0.99403122]
[1737957947010,0.00014216,100440.0,100430.0,1.32955922]
[1737957947637,0.00014216,100440.0,100430.0,1.23973722]
[1737957948316,0.00014216,100440.0,100430.0,1.12053635]
[1737957949026,0.00014216,100440.0,100430.0,1.23973722]
[1737957949240,0.00014216,100440.0,100430.0,1.10053635]
[1737957949456,0.00014216,100440.0,100430.0,1.10629737]
[1737957949879,0.00014216,100440.0,100430.0,0.86484237]
[1737957950717,0.00318083,100440.0,100430.0,1.00404324]
[1737957950927,0.00014216,100440.0,100430.0,1.00404324]
[1737957951541,0.00014216,100440.0,100430.0,1.16757824]
[1737957951991,1.6e-07,100440.0,100430.0,1.16757824]
[1737957952158,1.6e-07,100440.0,100430.0,1.01404324]
[1737957953782,1.6e-07,100440.0,100430.0,1.03171291]
[1737957954686,0.0001416,100470.0,100460.0,0.149313]
[1737957955024,0.02256467,100470.0,100460.0,0.36685637]
[1737957955324,0.02256467,100470.0,100460.0,0.36586116]
[1737957956161,0.02256467,100470.0,100460.0,0.37086116]
[1737957956362,0.02256467,100470.0,100460.0,0.45940187]
[1737957957093,0.02256467,100470.0,100460.0,0.46140187]
[1737957957818,0.02256467,100470.0,100460.0,0.47908275]
[1737957960578,0.02256467,100470.0,100460.0,0.48927239]
[1737957961776,0.02216467,100470.0,100460.0,0.63927239]
[1737957962411,0.02216467,100470.0,100460.0,0.6592676]
[1737957964047,0.29460671,100470.0,100460.0,0.11322159]
[1737957964253,0.14406467,100470.0,100460.0,0.38173546]
[1737957964899,0.29336267,100470.0,100460.0,0.37973546]
[1737957965107,0.14406467,100470.0,100460.0,0.37473546]
[1737957965310,0.29336267,100470.0,100460.0,0.37673546]
[1737957965497,0.14406467,100470.0,100460.0,0.37673546]
[1737957965703,0.14406467,100470.0,100460.0,0.10822159]
[1737957965704,0.29336267,100470.0,100460.0,0.10822159]
[1737957965865,0.29336267,100470.0,100460.0,0.38173546]
[1737957966255,0.29336267,100470.0,100460.0,0.37673546]
[1737957966669,0.29336267,100470.0,100460.0,0.11022159]
[1737957967086,0.29336267,100470.0,100460.0,0.10822159]
[1737957967498,0.29336267,100470.0,100460.0,0.10922159]
[1737957967940,0.29336267,100470.0,100430.0,0.60108186]
[1737957967941,0.0779,100440.0,100430.0,0.60108186]
[1737957968324,0.08177847,100440.0,100430.0,0.61090747]
[1737957968551,0.08177847,100440.0,100430.0,0.65019813]
[1737957969149,0.00387847,100440.0,100430.0,0.919399]
[1737957969355,0.47564338,100460.0,100430.0,0.80519813]
[1737957969557,0.00124438,100450.0,100440.0,0.31831987]
[1737957969713,0.673507,100460.0,100440.0,0.66677487]
[1737957970356,0.126,100460.0,100450.0,0.26852887]
[1737957970566,0.126,100460.0,100450.0,0.36587616]
[1737957971603,0.12336196,100460.0,100450.0,0.36587616]
[1737957972022,0.076291,100470.0,100460.0,0.149313]
[1737957972376,0.076291,100470.0,100460.0,0.36586116]
[1737957973172,0.094831,100470.0,100460.0,0.36586116]
[1737957973524,0.096831,100470.0,100460.0,0.36586116]
[1737957974286,0.097831,100470.0,100460.0,0.36586116]
[1737957974654,0.096831,100470.0,100460.0,0.36586116]
[1737957975405,0.094831,100470.0,100460.0,0.36586116]
[1737957975543,0.094831,100470.0,100460.0,0.36786116]
[1737957975762,0.094831,100470.0,100460.0,0.37801701]
[1737957975965,0.094831,100470.0,100460.0,0.64721788]
[1737957975966,0.018731,100470.0,100460.0,0.64721788]
[1737957976165,0.02259789,100470.0,100460.0,0.64721788]
[1737957976415,0.02259789,100470.0,100460.0,0.52801701]
[1737957978400,0.02259789,100470.0,100460.0,0.55904358]
[1737957978597,0.02384199,100470.0,100460.0,0.18233957]
[1737957978803,0.09869789,100470.0,100460.0,0.18233957]
[1737957979943,0.09869789,100470.0,100460.0,0.30154044]
[1737957980551,0.09869789,100470.0,100460.0,0.18233957]
[1737957983200,0.09869789,100470.0,100460.0,0.18263693]
[1737957984715,0.02259789,100470.0,100460.0,0.39918509]
[1737957984927,0.10189789,100470.0,100460.0,0.27998422]
[1737957986188,0.10189789,100470.0,100460.0,0.39918509]
[1737957986189,0.02259789,100470.0,100460.0,0.39918509]
[1737957987813,0.02259789,100470.0,100460.0,0.54918509]
[1737957990894,0.01434119,100490.0,100460.0,0.54918509]
[1737957991108,0.0143906,100490.0,100480.0,0.149283]
[1737957991313,4.941e-05,100490.0,100480.0,0.149283]
[1737957991825,0.197754,100500.0,100480.0,0.149283]
[1737957991826,0.21980341,100500.0,100480.0,0.149283]
[1737957991963,0.15,100500.0,100490.0,0.149268]
[1737957992819,0.299253,100500.0,100490.0,0.149268]
[1737957993544,0.15,100500.0,100490.0,0.149268]
[1737957993936,0.2299,100500.0,100490.0,0.149268]
[1737957994298,0.24944,100500.0,100490.0,0.149268]
[1737957994540,0.251168,100490.0,100480.0,0.08937122]
[1737957994806,0.34851529,100490.0,100480.0,0.08937122]
[1737957995062,0.39381529,100490.0,100480.0,0.08937122]
[1737957995566,0.27337825,100490.0,100480.0,0.08937122]
[1737957995804,0.27337825,100490.0,100480.0,0.149283]
[1737957995805,0.12411025,100490.0,100480.0,0.149283]
[1737957996033,0.0206816,100500.0,100490.0,0.149268]
[1737957996273,0.0196816,100500.0,100490.0,0.149268]
[1737957996771,0.0186816,100500.0,100490.0,0.149268]
[1737957997482,0.0186816,100500.0,100490.0,0.150268]
[1737957997734,0.0186816,100500.0,100490.0,0.153268]
[1737957997973,0.0186816,100500.0,100490.0,0.152268]
[1737957998207,0.0186816,100500.0,100490.0,0.149268]
[1737957998451,0.0186816,100500.0,100490.0,0.150268]
[1737957999643,0.0186816,100500.0,100490.0,0.36681616]
[1737958000575,0.0186816,100500.0,100490.0,0.24761529]
[1737958001259,0.0186816,100500.0,100490.0,0.36681616]
[1737958001743,0.0186816,100500.0,100490.0,0.24761529]
[1737958001941,0.0186816,100500.0,100490.0,0.150268]
[1737958005133,0.0186816,100500.0,100490.0,0.23963922]
[1737958006261,0.02217532,100500.0,100490.0,0.23963922]
[1737958006927,0.02217532,100500.0,100490.0,0.150268]
[1737958007602,0.02217532,100500.0,100490.0,0.26946887]
[1737958009157,0.02217532,100500.0,100490.0,0.36681616]
[1737958010373,0.02217532,100500.0,100490.0,0.39781935]
[1737958010589,0.02217532,100500.0,100490.0,0.36681616]
[1737958010804,0.02217532,100500.0,100490.0,0.39781915]
[1737958011021,0.02217532,100500.0,100490.0,0.36681616]
[1737958011418,0.02217532,100500.0,100490.0,0.3978161]
[1737958012132,0.02217532,100500.0,100490.0,0.48700799]
[1737958012410,0.02217532,100500.0,100490.0,0.45600805]
[1737958014664,0.02217532,100500.0,100490.0,0.36681616]
[1737958016600,0.02046032,100500.0,100490.0,0.36681616]
[1737958018789,0.02046032,100500.0,100490.0,0.36711331]
[1737958019152,0.02046032,100500.0,100490.0,0.39812922]
[1737958021188,0.02046032,100500.0,100490.0,0.41812922]
[1737958022839,0.02046032,100500.0,100490.0,0.38711331]
[1737958025357,0.02046032,100500.0,100490.0,0.41815957]
[1737958025795,0.02046032,100500.0,100490.0,0.38711331]
[1737958025988,0.02046032,100500.0,100490.0,0.41815966]
[1737958026462,0.02046032,100500.0,100490.0,0.50741103]
[1737958028372,0.02046032,100500.0,100490.0,0.65741103]
[1737958028936,0.02046032,100500.0,100490.0,0.56815966]
[1737958033145,0.02046032,100500.0,100490.0,0.68736053]
[1737958033986,0.02046032,100500.0,100490.0,0.56815966]
[1737958034189,0.02046032,100500.0,100490.0,0.68636053]
[1737958034367,0.02046032,100500.0,100490.0,0.56915966]
[1737958034504,0.02046032,100500.0,100490.0,0.69336053]
[1737958034707,0.02046032,100500.0,100490.0,0.57415966]
[1737958034912,0.02046032,100500.0,100490.0,0.69336053]
[1737958036076,0.02046032,100500.0,100490.0,0.57215966]
[1737958036227,0.02046032,100500.0,100490.0,0.69136053]
[1737958036429,0.02046032,100500.0,100490.0,0.69336053]
[1737958036877,0.02046032,100500.0,100490.0,0.57415966]
[1737958037968,0.06766032,100500.0,100490.0,0.57415966]
[1737958038169,0.14746032,100500.0,100490.0,0.57415966]
[1737958041213,0.06766032,100500.0,100490.0,0.57415966]
[1737958041418,0.02046032,100500.0,100490.0,0.57415966]
[1737958047163,0.02046032,100500.0,100490.0,0.30495879]
[1737958047367,0.02170416,100500.0,100490.0,0.30495879]
[1737958047565,0.02046032,100500.0,100490.0,0.42415966]
[1737958048454,0.02046032,100500.0,100490.0,0.42215966]
[1737958048862,0.02046032,100500.0,100490.0,0.42415966]
[1737958049820,0.02046032,100500.0,100490.0,0.41915966]
[1737958050402,0.02046032,100500.0,100490.0,0.42015966]
[1737958050605,0.02046032,100500.0,100490.0,0.41915966]
[1737958051026,0.02046032,100500.0,100490.0,0.42315966]
[1737958051227,0.02046032,100500.0,100490.0,0.41915966]
[1737958051547,0.02046032,100500.0,100490.0,0.41815966]
[1737958051912,0.02046032,100500.0,100490.0,0.41715966]
[1737958052823,0.09976032,100500.0,100490.0,0.41715966]
[1737958053449,0.09976032,100500.0,100490.0,0.30195879]
[1737958053798,0.29555716,100500.0,100490.0,0.02029715]
[1737958053971,0.29431332,100500.0,100490.0,0.02129715]
[1737958054458,0.29431332,100500.0,100490.0,0.17056515]
[1737958054870,0.14506032,100500.0,100490.0,0.17056515]
[1737958055195,0.14506032,100500.0,100490.0,0.38711331]
[1737958055404,0.02046032,100500.0,100490.0,0.38711331]
[1737958055608,0.02046032,100500.0,100490.0,0.4181842]
[1737958056646,0.00928188,100510.0,100500.0,0.149253]
[1737958056847,0.00928188,100510.0,100500.0,0.36580116]
[1737958059648,0.02782188,100510.0,100500.0,0.36580116]
[1737958059849,0.02782188,100510.0,100500.0,0.36680116]
[1737958061894,0.02782188,100510.0,100500.0,0.37695607]
[1737958064289,0.03154969,100510.0,100500.0,0.37695607]
[1737958064697,0.03169129,100510.0,100500.0,0.37695607]
[1737958065501,0.00669129,100510.0,100500.0,0.37695607]
[1737958068992,0.00669129,100510.0,100500.0,0.40802366]
[1737958071487,0.00669129,100510.0,100500.0,0.67722453]
[1737958072692,0.00669129,100510.0,100500.0,0.67922453]
[1737958072926,0.00669129,100510.0,100500.0,0.67822453]
[1737958073130,0.00669129,100510.0,100500.0,0.67622453]
[1737958073338,0.00669129,100510.0,100500.0,0.68022453]
[1737958074423,0.00669129,100510.0,100500.0,0.69802805]
[1737958074635,0.00669129,100510.0,100500.0,0.70002805]
[1737958076289,0.00669129,100510.0,100500.0,0.70032541]
[1737958076710,0.00669129,100510.0,100500.0,0.68252189]
[1737958078353,0.00669129,100510.0,100500.0,0.68052189]
[1737958078553,0.00669129,100510.0,100500.0,0.67954165]
[1737958079389,0.00669129,100510.0,100500.0,0.59740115]
[1737958079596,0.00769129,100510.0,100500.0,0.68254165]
[1737958080621,0.00769129,100510.0,100500.0,0.68628007]
[1737958084041,0.00769129,100510.0,100500.0,0.70406947]
[1737958085284,0.00769129,100510.0,100500.0,0.77986947]
[1737958085877,0.00396348,100510.0,100500.0,0.77986947]
[1737958086947,0.00396348,100510.0,100500.0,0.80286947]
[1737958087353,0.00771576,100510.0,100500.0,0.80286947]
[1737958089654,7.6e-07,100510.0,100500.0,0.77986947]
[1737958089858,0.09770817,100540.0,100530.0,0.149209]
[1737958090046,0.09785646,100540.0,100530.0,0.48471621]
[1737958090256,0.09785646,100540.0,100530.0,0.36563625]
[1737958090464,0.1278,100530.0,100520.0,0.11907996]
[1737958090688,0.1278,100530.0,100510.0,0.348202]
[1737958090689,0.1278,100520.0,100510.0,0.348202]
[1737958090891,0.0809,100510.0,100500.0,0.29957163]
[1737958091050,0.0809,100510.0,100500.0,0.28641672]
[1737958091255,0.0809,100510.0,100500.0,0.26862732]
[1737958092087,0.0809,100510.0,100500.0,0.36597461]
[1737958092492,0.0809,100510.0,100500.0,0.36697461]
[1737958092837,0.0809,100510.0,100500.0,0.38476162]
[1737958093189,0.0809,100510.0,100500.0,0.50384158]
[1737958093460,0.1278,100520.0,100510.0,0.149238]
[1737958093570,0.1278,100520.0,100510.0,0.36566525]
[1737958094720,0.1278,100520.0,100510.0,0.45494196]
[1737958096178,0.1278,100520.0,100510.0,0.45594196]
[1737958096429,0.1278,100520.0,100510.0,0.45604196]
[1737958096655,0.1278,100520.0,100510.0,0.23961471]
[1737958096892,0.1278,100520.0,100510.0,0.24161471]
[1737958097125,0.1278,100520.0,100510.0,0.23961471]
[1737958097356,0.150097,100520.0,100510.0,0.23861471]
[1737958097610,0.150097,100520.0,100510.0,0.24061471]
[1737958097845,0.150097,100520.0,100510.0,0.23961471]
[1737958098337,0.15134061,100520.0,100510.0,0.23861471]
[1737958098575,0.150097,100520.0,100510.0,0.23861471]
[1737958098813,0.322321,100520.0,100510.0,0.08937671]
[1737958099805,0.322321,100520.0,100510.0,0.08967386]
[1737958099806,0.3224625,100520.0,100510.0,0.08967386]
[1737958100270,0.3224625,100520.0,100510.0,0.23891186]
[1737958101929,0.3224625,100520.0,100510.0,0.14963515]
[1737958102904,0.4724625,100520.0,100510.0,0.00039715]
[1737958104624,0.56980979,100520.0,100510.0,0.00039715]
[1737958105031,0.57980979,100520.0,100510.0,0.00039715]
[1737958106419,0.57970979,100520.0,100510.0,0.00029715]
[1737958106808,0.58170979,100520.0,100510.0,0.00029715]
[1737958107227,0.57970979,100520.0,100510.0,0.00029715]
[1737958107673,0.58170979,100520.0,100510.0,0.00029715]
[1737958108255,0.4723625,100520.0,100510.0,0.00029715]
[1737958108912,0.56970979,100520.0,100510.0,0.00029715]
[1737958109270,0.57970979,100520.0,100510.0,0.00029715]
[1737958110575,0.55770979,100520.0,100510.0,0.00029715]
[1737958114379,0.4503625,100520.0,100510.0,0.00029715]
[1737958115813,0.9478025,100520.0,100510.0,0.00029715]
[1737958118763,0.9478025,100520.0,100510.0,0.14953515]
[1737958120168,0.5208785,100520.0,100510.0,0.24688244]
[1737958120374,0.5208785,100520.0,100510.0,0.3659624]
[1737958120979,0.5198785,100520.0,100510.0,0.3659624]
[1737958121199,0.5198785,100520.0,100510.0,0.24688244]
[1737958121579,0.5198785,100520.0,100510.0,0.14953515]
[1737958122004,0.5198785,100520.0,100510.0,0.15053515]
[1737958123376,0.5198785,100520.0,100510.0,0.15353515]
[1737958123914,0.5198785,100520.0,100510.0,0.14953515]
[1737958124114,0.5198785,100520.0,100510.0,0.26861511]
[1737958124524,0.5198785,100520.0,100510.0,0.23878498]
[1737958124723,0.5198785,100520.0,100510.0,0.23978498]
[1737958125419,0.5198785,100520.0,100510.0,0.23878498]
[1737958126832,0.7919025,100520.0,100510.0,0.23878498]
[1737958127548,0.7919025,100520.0,100510.0,0.08954698]
[1737958129669,0.7919025,100520.0,100510.0,0.00029715]
[1737958131699,0.88924979,100520.0,100510.0,0.00029715]
[1737958133699,1.04024979,100520.0,100510.0,0.00029715]
[1737958134109,1.03924979,100520.0,100510.0,0.00029715]
[1737958134485,1.04024979,100520.0,100510.0,0.00029715]
[1737958138021,1.04002378,100520.0,100510.0,0.00029715]
[1737958143253,1.03902378,100520.0,100510.0,0.00029715]
[1737958143458,1.04102378,100520.0,100510.0,0.00029715]
[1737958145128,0.81559978,100520.0,100510.0,0.14953515]
[1737958145367,0.52165249,100520.0,100510.0,0.14953515]
[1737958146506,0.51965249,100520.0,100510.0,0.14953515]
[1737958146712,0.52065249,100520.0,100510.0,0.23878498]
[1737958147217,0.52046515,100520.0,100510.0,0.23878498]
[1737958147437,0.52046515,100520.0,100510.0,0.43946494]
[1737958148237,0.52046515,100520.0,100510.0,0.47051334]
[1737958148441,0.52046515,100520.0,100510.0,0.43946494]
[1737958149858,0.51946515,100520.0,100510.0,0.43946494]
[1737958150179,0.51946515,100520.0,100510.0,0.44046494]
[1737958150383,0.51946515,100520.0,100510.0,0.53781223]
[1737958150588,0.51946515,100520.0,100510.0,0.73564783]
[1737958150801,0.51946515,100520.0,100510.0,0.73964783]
[1737958151410,0.51946515,100520.0,100510.0,0.78954783]
[1737958151616,0.51946515,100520.0,100510.0,0.68250034]
[1737958152422,0.51946515,100520.0,100510.0,0.67950034]
[1737958152792,0.51946515,100520.0,100510.0,0.68650034]
[1737958152998,0.51945592,100520.0,100510.0,0.68650034]
[1737958153198,0.51945592,100520.0,100510.0,0.68550034]
[1737958153579,0.51945592,100520.0,100510.0,0.68750034]
[1737958155913,0.51945592,100520.0,100510.0,0.71050034]
[1737958158663,0.51570815,100520.0,100510.0,0.72825739]
[1737958158847,0.51945592,100520.0,100510.0,0.72825739]
[1737958159374,0.41997092,100520.0,100510.0,0.84733735]
[1737958159736,0.01695646,100540.0,100530.0,0.149209]
[1737958160151,0.01695646,100540.0,100530.0,0.48471621]
[1737958160267,0.02070423,100540.0,100530.0,0.48471621]
[1737958160667,0.02070423,100540.0,100530.0,0.50247326]
[1737958160952,0.02070423,100540.0,100530.0,0.65247326]
[1737958162834,0.03924423,100540.0,100530.0,0.65247326]
[1737958163063,0.03924423,100540.0,100530.0,0.65347326]
[1737958163273,0.03924423,100540.0,100530.0,0.71571621]
[1737958163446,0.03924423,100540.0,100530.0,0.71871621]
[1737958164337,0.03924423,100540.0,100530.0,0.71571621]
[1737958164537,0.03924423,100540.0,100530.0,0.72271621]
[1737958164776,0.03924423,100540.0,100530.0,0.81186905]
[1737958165228,0.03924423,100540.0,100530.0,0.82173396]
[1737958165345,0.02070423,100540.0,100530.0,0.82173396]
[1737958165929,0.02070423,100540.0,100530.0,0.82073396]
[1737958166263,0.02070423,100540.0,100530.0,0.82273396]
[1737958167110,0.02070423,100540.0,100530.0,0.84261556]
[1737958170848,0.02070423,100540.0,100530.0,0.75346272]
[1737958172427,0.00403756,100540.0,100530.0,0.75346272]
[1737958173238,0.00403756,100540.0,100530.0,0.67346272]
[1737958175350,0.00403756,100540.0,100530.0,0.7624365]
[1737958176584,0.00403756,100540.0,100530.0,0.68048894]
[1737958180659,0.00403756,100540.0,100530.0,0.48335548]
[1737958180660,0.13313756,100540.0,100530.0,0.48335548]
[1737958180847,0.13313756,100540.0,100530.0,0.33515387]
[1737958181276,0.15167756,100540.0,100530.0,0.33515387]
[1737958181846,0.15167756,100540.0,100530.0,0.33315387]
[1737958182048,0.15167756,100540.0,100530.0,0.33515387]
[1737958182484,0.15167756,100540.0,100530.0,0.43250116]
[1737958182716,0.15167756,100540.0,100530.0,0.42350116]
[1737958183387,0.15167756,100540.0,100530.0,0.33452738]
[1737958183834,0.07207756,100540.0,100530.0,0.33452738]
[1737958184580,0.07207756,100540.0,100530.0,0.37546294]
[1737958185822,0.07207756,100540.0,100530.0,0.46443672]
[1737958186435,0.07207756,100540.0,100530.0,0.4954764]
[1737958186784,0.02257756,100540.0,100530.0,0.4954764]
[1737958187418,0.02257756,100540.0,100530.0,0.6454764]
[1737958187622,0.02257756,100540.0,100530.0,0.6484764]
[1737958188607,0.02257756,100540.0,100530.0,0.6494764]
[1737958189750,0.02257756,100540.0,100530.0,0.56050262]
[1737958190623,0.02257756,100540.0,100530.0,0.29146088]
[1737958190827,0.14547756,100540.0,100530.0,0.29146088]
[1737958191579,0.14547756,100540.0,100530.0,0.40950262]
[1737958191713,0.14547756,100540.0,100530.0,0.41050262]
[1737958192571,0.14547756,100540.0,100530.0,0.42829961]
[1737958193170,0.14547756,100540.0,100530.0,0.42529961]
[1737958193377,0.14547756,100540.0,100530.0,0.42829961]